bitfinex/quotes_SOLUSD_20240913
["timestamp","ask_amount","ask_price","bid_price","bid_amount"]
[1726266102883,23.776884,139.95,139.87,0.37647]
[1726266103266,23.776884,139.95,139.87,0.12549]
[1726266103676,23.776884,139.95,139.87,0.25098]
[1726266106016,23.776884,139.95,139.87,0.12549]
[1726266106190,23.776884,139.95,139.86,20.0]
[1726266106964,23.776884,139.95,139.87,0.12549]
[1726266107366,23.776884,139.95,139.86,20.0]
[1726266108778,23.776884,139.95,139.86,20.1545184]
[1726266109190,23.776884,139.95,139.86,0.1545184]
[1726266109191,0.12549,139.94,139.86,0.1545184]
[1726266109383,0.37647,139.94,139.86,0.1545184]
[1726266114403,0.12549,139.94,139.86,0.1545184]
[1726266115274,23.776884,139.95,139.86,0.1545184]
[1726266116293,15.3955,139.96,139.87,0.25098]
[1726266116473,6.3591004,139.98,139.89,20.0]
[1726266117800,24.027864,139.97,139.89,20.0]
[1726266120296,24.027864,139.97,139.88,22.5271]
[1726266120297,45.497864,139.97,139.88,22.5271]
[1726266120500,0.25098,139.95,139.88,6.3159]
[1726266120699,0.25098,139.93,139.86,0.1545184]
[1726266121015,24.027864,139.93,139.86,0.1545184]
[1726266122197,15.4433,139.94,139.86,20.1545184]
[1726266122390,16.3046,139.97,139.86,20.1545184]
[1726266122569,16.3046,139.97,139.87,0.12549]
[1726266122996,16.3046,139.97,139.87,0.37647]
[1726266123191,0.1082004,139.98,139.89,20.0]
[1726266124677,0.12549,139.97,139.89,20.0]
[1726266124904,0.25098,139.97,139.89,20.0]
[1726266125098,0.25098,139.97,139.88,6.139]
[1726266126416,0.12549,139.96,139.88,6.139]
[1726266126799,24.027864,139.95,139.88,6.139]
[1726266127818,0.25098,139.95,139.88,6.139]
[1726266129114,0.12549,139.94,139.87,0.1545184]
[1726266129318,0.25098,139.93,139.87,0.1545184]
[1726266131596,0.25098,139.91,139.87,0.1545184]
[1726266131923,23.776884,139.92,139.87,0.1545184]
[1726266132225,0.25098,139.92,139.87,0.1545184]
[1726266133720,23.776884,139.93,139.87,0.1545184]
[1726266135621,0.12549,139.92,139.87,0.1545184]
[1726266135814,0.25098,139.92,139.87,0.1545184]
[1726266136833,23.776884,139.93,139.87,0.1545184]
[1726266138207,0.25098,139.92,139.87,0.1545184]
[1726266139530,0.12549,139.9,139.87,0.1545184]
[1726266140239,0.25098,139.9,139.87,0.1545184]
[1726266140823,23.776884,139.89,139.87,0.1545184]
[1726266141019,0.25098,139.88,139.87,0.1545184]
[1726266141246,23.77154101,139.94,139.87,0.1545184]
[1726266141544,0.12549,139.9,139.87,0.1545184]
[1726266141748,0.37647,139.9,139.87,0.1545184]
[1726266142318,23.77154101,139.94,139.87,0.1545184]
[1726266142722,0.12549,139.93,139.87,0.1545184]
[1726266143734,0.25098,139.92,139.87,0.1545184]
[1726266145252,6.6186,139.96,139.87,0.1545184]
[1726266145550,16.3561004,139.98,139.87,0.1545184]
[1726266145843,23.82447791,139.98,139.87,0.1545184]
[1726266146340,7.1444,139.97,139.87,0.1545184]
[1726266146644,24.027864,139.96,139.87,0.1545184]
[1726266146841,0.12549,139.95,139.88,22.475]
[1726266148327,0.25098,139.94,139.88,22.475]
[1726266148542,7.39688,139.94,139.88,22.475]
[1726266148724,0.12549,139.92,139.88,6.2619]
[1726266149750,0.12549,139.92,139.87,0.1545184]
[1726266149751,0.25098,139.92,139.87,0.1545184]
[1726266149953,0.12549,139.9,139.87,0.1545184]
[1726266151621,23.902374,139.89,139.87,0.1545184]
[1726266151940,0.37647,139.88,139.87,0.1545184]
[1726266154044,7.52537,139.88,139.87,0.1545184]
[1726266154221,31.302254,139.88,139.87,0.1545184]
[1726266156619,52.772254,139.88,139.87,0.1545184]
[1726266157817,31.302254,139.88,139.87,0.1545184]
[1726266160648,24.153354,139.88,139.87,0.1545184]
[1726266161152,31.302254,139.88,139.87,0.1545184]
[1726266161351,24.153354,139.88,139.87,0.1545184]
[1726266162235,31.302254,139.88,139.87,0.1545184]
[1726266163153,52.772254,139.88,139.87,0.1545184]
[1726266165437,7.1473,139.92,139.87,0.1545184]
[1726266165931,23.3944,139.93,139.87,0.1545184]
[1726266166259,7.1465,139.93,139.87,0.1545184]
[1726266166448,14.607561,139.94,139.87,0.1545184]
[1726266166653,7.461661,139.94,139.87,0.1545184]
[1726266166860,7.1455,139.95,139.87,0.1545184]
[1726266167160,7.46226971,139.96,139.87,0.1545184]
[1726266167569,14.60726971,139.96,139.87,0.1545184]
[1726266167857,7.46226971,139.96,139.87,0.1545184]
[1726266168152,28.6144,139.97,139.88,16.6414]
[1726266169035,7.1449,139.96,139.88,16.6414]
[1726266169245,24.027864,139.95,139.88,16.6414]
[1726266170570,0.25098,139.95,139.88,16.6414]
[1726266174070,14.71124667,139.98,139.89,6.2316]
[1726266174360,7.56744667,139.98,139.89,6.2316]
[1726266174564,0.1082004,139.98,139.89,6.2316]
[1726266175147,0.1082004,139.98,139.9,1.42802628]
[1726266175354,0.1082004,139.98,139.89,6.2316]
[1726266176755,0.2336904,139.98,139.89,6.2316]
[1726266177136,0.2336904,139.98,139.9,15.1442]
[1726266177336,0.2336904,139.98,139.91,6.2149]
[1726266179258,0.1082004,139.98,139.91,6.2149]
[1726266180655,0.1082004,139.98,139.91,7.64133486]
[1726266180838,0.1082004,139.98,139.93,15.1442]
[1726266181039,0.1082004,139.98,139.94,6.6378]
[1726266184368,0.2336904,139.98,139.94,6.6378]
[1726266184576,0.1082004,139.98,139.94,6.6378]
[1726266185353,0.25098,139.97,139.94,6.6378]
[1726266187477,0.1082004,139.98,139.94,6.6378]
[1726266187976,0.12549,139.97,139.94,6.6378]
[1726266188645,0.2336904,139.98,139.94,6.6378]
[1726266192070,0.1082004,139.98,139.94,6.6378]
[1726266202559,0.2627188,140.02,139.95,15.8005]
[1726266202787,0.2627188,140.02,139.98,6.1729]
[1726266211577,0.2627188,140.02,139.98,7.6007497]
[1726266211791,0.2627188,140.02,139.99,21.42854841]
[1726266212285,0.2627188,140.02,139.99,21.42785793]
[1726266212472,0.2627188,140.02,139.99,20.0]
[1726266213781,0.2627188,140.02,139.98,6.1729]
[1726266213986,0.2627188,140.02,139.99,20.0]
[1726266215670,0.2627188,140.02,139.98,6.1729]
[1726266221389,0.2627188,140.02,139.99,20.12549]
[1726266221801,0.2627188,140.02,139.99,20.0]
[1726266223298,0.2627188,140.02,139.98,6.1729]
[1726266238403,0.2627188,140.02,139.92,20.59606564]
[1726266238604,0.2627188,140.02,139.93,23.0422]
[1726266238605,0.25098,140.01,139.93,23.0422]
[1726266240100,0.25098,139.99,139.9,16.5911]
[1726266240681,0.25098,139.99,139.87,0.2627188]
[1726266240682,0.12549,139.96,139.87,0.2627188]
[1726266240999,45.623354,139.96,139.87,0.2627188]
[1726266242984,52.768354,139.96,139.87,0.2627188]
[1726266243197,24.027864,139.93,139.87,0.2627188]
[1726266243393,0.25098,139.92,139.87,0.2627188]
[1726266244179,23.776884,139.93,139.87,0.2627188]
[1726266244388,0.12549,139.96,139.87,0.2627188]
[1726266244586,0.25098,139.96,139.87,0.2627188]
[1726266245198,0.25098,139.96,139.87,20.2627188]
[1726266245408,16.2264,139.97,139.87,20.2627188]
[1726266245578,7.93897348,140.02,139.89,15.7796]
[1726266245780,0.2627188,140.02,139.94,20.12549]
[1726266249721,0.2627188,140.02,139.95,0.25098]
[1726266254798,0.2627188,140.02,139.94,20.12549]
[1726266254995,0.2627188,140.02,139.94,0.25098]
[1726266255412,0.2627188,140.02,139.94,0.12549]
[1726266255608,0.2627188,140.02,139.93,6.51929]
[1726266256295,0.2627188,140.02,139.94,0.12549]
[1726266256490,0.2627188,140.02,139.94,20.0]
[1726266258217,0.2627188,140.02,139.94,20.54351808]
[1726266258394,0.2627188,140.02,139.94,20.0]
[1726266258900,0.2627188,140.02,139.94,20.54324622]
[1726266259220,0.2627188,140.02,139.94,20.0]
[1726266259622,0.2627188,140.02,139.94,20.54297448]
[1726266260317,0.2627188,140.02,139.94,20.0]
[1726266260898,0.2627188,140.02,139.95,0.54266409]
[1726266261303,0.2627188,140.02,139.96,0.54262532]
[1726266261525,0.2627188,140.02,139.95,0.25098]
[1726266262096,0.2627188,140.02,139.94,20.0]
[1726266262323,0.2627188,140.02,139.95,0.12549]
[1726266264598,0.2627188,140.02,139.94,20.0]
[1726266265199,0.2627188,140.02,139.93,6.3938]
[1726266265403,0.25098,140.01,139.93,6.3938]
[1726266269132,23.776884,140.0,139.93,6.3938]
[1726266269335,0.25098,139.99,139.93,6.3938]
[1726266270534,0.12549,139.98,139.92,20.0]
[1726266270828,0.12549,139.98,139.91,15.7796]
[1726266272836,0.12549,139.98,139.89,6.0552]
[1726266272837,0.12549,139.98,139.9,20.0]
[1726266274124,23.902374,139.98,139.89,6.0552]
[1726266274337,0.25098,139.97,139.88,20.0]
[1726266274510,0.12549,139.96,139.88,20.0]
[1726266275544,0.25098,139.95,139.87,16.8089188]
[1726266275731,23.902374,139.94,139.87,16.8089188]
[1726266276041,23.902374,139.94,139.87,0.2627188]
[1726266276220,0.12549,139.93,139.87,0.2627188]
[1726266277015,23.776884,139.94,139.87,0.2627188]
[1726266280834,0.12549,139.93,139.87,0.2627188]
[1726266281038,23.776884,139.94,139.87,0.2627188]
[1726266281916,0.12549,139.93,139.87,0.2627188]
[1726266282535,15.5782,139.99,139.87,20.2627188]
[1726266283421,37.0582,139.99,139.87,20.2627188]
[1726266283622,23.776884,139.98,139.87,20.2627188]
[1726266283829,0.37647,139.97,139.87,20.2627188]
[1726266284432,23.776884,139.96,139.87,20.2627188]
[1726266284739,0.25098,139.95,139.87,20.2627188]
[1726266286440,13.47198,139.95,139.87,0.2627188]
[1726266286735,23.776884,139.92,139.87,0.2627188]
[1726266289527,0.12549,139.91,139.87,0.2627188]
[1726266289928,23.776884,139.92,139.87,0.2627188]
[1726266302838,0.12549,139.91,139.87,0.2627188]
[1726266303351,0.37647,139.91,139.87,0.2627188]
[1726266306461,24.027864,139.89,139.87,0.2627188]
[1726266308250,0.12549,139.88,139.87,0.2627188]
[1726266312332,28.75439,139.88,139.87,0.2627188]
[1726266312662,52.782254,139.88,139.87,0.2627188]
[1726266313235,45.633354,139.88,139.87,0.2627188]
[1726266316462,52.782254,139.88,139.87,0.2627188]
[1726266317348,45.633354,139.88,139.87,0.2627188]
[1726266321744,24.153354,139.88,139.87,0.2627188]
[1726266321954,45.633354,139.88,139.87,0.2627188]
[1726266324661,52.782254,139.88,139.87,0.2627188]
[1726266324962,52.782254,139.88,139.83,0.2627188]
[1726266324963,0.25098,139.84,139.83,0.2627188]
[1726266325266,0.37647,139.84,139.83,0.2627188]
[1726266327250,0.12549,139.84,139.83,0.2627188]
[1726266327660,21.48,139.89,139.83,0.2627188]
[1726266328952,37.0313,139.9,139.83,0.2627188]
[1726266329146,21.48,139.9,139.83,0.2627188]
[1726266329857,28.74314404,139.93,139.83,15.5293188]
[1726266330056,21.48,139.92,139.83,15.5293188]
[1726266330263,28.6269,139.92,139.83,15.5293188]
[1726266330662,21.48,139.9,139.83,15.5293188]
[1726266331257,24.027864,139.89,139.83,15.5293188]
[1726266331654,23.902374,139.89,139.83,15.5293188]
[1726266331853,15.1324,139.93,139.83,15.5293188]
[1726266332167,7.1453,139.96,139.85,6.4003]
[1726266332370,28.74117293,139.97,139.85,6.4003]
[1726266332559,21.48,139.96,139.85,6.4003]
[1726266332942,28.6259,139.94,139.85,6.4003]
[1726266333168,28.74117293,139.97,139.85,6.4003]
[1726266333353,23.776884,139.95,139.85,6.4003]
[1726266333555,7.1454,139.95,139.85,6.4003]
[1726266334371,0.12549,139.94,139.85,6.4003]
[1726266334752,0.25098,139.94,139.85,6.4003]
[1726266334952,24.153354,139.93,139.85,6.4003]
[1726266335154,0.37647,139.93,139.85,6.4003]
[1726266348863,45.256884,139.95,139.86,16.99728464]
[1726266349065,0.25098,139.94,139.86,16.5369]
[1726266349279,0.37647,139.94,139.86,16.5369]
[1726266349682,0.12549,139.94,139.86,16.5369]
[1726266350289,0.12549,139.94,139.87,6.1992]
[1726266350894,0.25098,139.94,139.87,6.1992]
[1726266353190,45.382374,139.95,139.87,6.1992]
[1726266356399,0.37647,139.94,139.87,6.1992]
[1726266361077,7.52247,139.94,139.87,6.1992]
[1726266361301,0.25098,139.92,139.87,6.1992]
[1726266361488,0.25098,139.91,139.87,6.1992]
[1726266361693,0.25098,139.9,139.87,6.1992]
[1726266362305,45.256884,139.93,139.87,6.1992]
[1726266362473,0.37647,139.92,139.87,6.1992]
[1726266363978,0.25098,139.9,139.87,6.1992]
[1726266364189,21.73098,139.9,139.87,6.1992]
[1726266364392,23.902374,139.89,139.87,6.1992]
[1726266365384,23.776884,139.89,139.87,6.1992]
[1726266365585,24.027864,139.9,139.87,6.1992]
[1726266371696,0.25098,139.9,139.87,6.1992]
[1726266371899,0.12549,139.89,139.87,6.1992]
[1726266372717,0.12549,139.89,139.86,16.5369]
[1726266373214,0.12549,139.89,139.84,6.3928]
[1726266375792,24.027864,139.88,139.84,6.3928]
[1726266376090,21.73098,139.87,139.84,6.3928]
[1726266376295,23.902374,139.86,139.84,6.3928]
[1726266376699,0.25098,139.86,139.83,0.2627188]
[1726266378494,0.12549,139.84,139.83,0.2627188]
[1726266381694,0.25098,139.84,139.83,0.2627188]
[1726266382011,24.153354,139.84,139.83,0.2627188]
[1726266385522,45.633354,139.84,139.83,0.2627188]
[1726266387530,52.784354,139.84,139.83,0.2627188]
[1726266390325,45.507864,139.81,139.78,0.2627188]
[1726266390517,0.12549,139.79,139.78,0.2627188]
[1726266390724,0.25098,139.79,139.78,0.2627188]
[1726266391017,0.37647,139.79,139.78,0.2627188]
[1726266403247,45.633354,139.79,139.78,0.2627188]
[1726266405446,24.153354,139.79,139.78,0.2627188]
[1726266405637,0.12549,139.79,139.78,0.2627188]
[1726266406840,0.25098,139.79,139.78,0.2627188]
[1726266407238,0.37647,139.79,139.78,0.2627188]
[1726266407637,21.48,139.83,139.78,6.3838188]
[1726266408836,0.12549,139.82,139.78,6.3838188]
[1726266409048,24.027864,139.8,139.78,6.3838188]
[1726266409732,23.776884,139.8,139.78,6.3838188]
[1726266410449,45.256884,139.8,139.78,6.3838188]
[1726266410752,0.25098,139.79,139.78,0.2627188]
[1726266410951,0.37647,139.79,139.78,0.2627188]
[1726266420754,21.48,139.83,139.78,0.2627188]
[1726266421839,0.25098,139.81,139.78,0.2627188]
[1726266422050,45.507864,139.81,139.78,0.2627188]
[1726266422440,24.027864,139.81,139.78,0.2627188]
[1726266422659,45.507864,139.81,139.78,0.2627188]
[1726266424244,21.48,139.83,139.78,0.2627188]
[1726266425359,21.48,139.84,139.78,0.2627188]
[1726266425557,21.48,139.82,139.78,0.2627188]
[1726266425765,45.633354,139.81,139.78,0.2627188]
[1726266431069,21.48,139.84,139.78,0.2627188]
[1726266431282,7.151,139.84,139.78,0.2627188]
[1726266431567,21.48,139.83,139.78,0.2627188]
[1726266432348,45.633354,139.82,139.78,0.2627188]
[1726266437170,21.48,139.83,139.78,0.2627188]
[1726266437563,21.48,139.83,139.79,6.4024]
[1726266438069,21.48,139.85,139.79,6.4024]
[1726266438274,21.48,139.85,139.8,16.4407]
[1726266439365,21.73098,139.83,139.8,16.4407]
[1726266439564,23.776884,139.82,139.8,16.4407]
[1726266440580,17.02763614,139.91,139.8,16.4407]
[1726266440873,21.48,139.89,139.81,6.4024]
[1726266441075,21.48,139.89,139.81,7.8309267]
[1726266441260,21.48,139.88,139.81,7.8309267]
[1726266442152,21.48,139.88,139.81,6.4024]
[1726266442465,10.27107634,139.91,139.81,6.4024]
[1726266442466,21.48,139.87,139.81,6.4024]
[1726266442856,0.12549,139.86,139.81,6.4024]
[1726266443578,0.25098,139.86,139.81,6.4024]
[1726266445158,0.12549,139.86,139.81,6.4024]
[1726266446972,21.48,139.89,139.82,16.0454]
[1726266447170,21.48,139.9,139.82,16.0454]
[1726266447673,21.48,139.9,139.83,6.427]
[1726266448277,0.12549,139.89,139.83,6.427]
[1726266450272,21.7427188,139.93,139.83,6.427]
[1726266451563,21.48,139.89,139.83,6.427]
[1726266451759,23.902374,139.88,139.83,6.427]
[1726266455882,45.382374,139.88,139.83,6.427]
[1726266457159,0.25098,139.87,139.83,6.427]
[1726266457358,0.25098,139.86,139.83,6.427]
[1726266459274,23.902374,139.87,139.83,6.427]
[1726266462264,23.776884,139.85,139.83,6.427]
[1726266463288,0.12549,139.88,139.83,6.427]
[1726266463289,21.60549,139.88,139.83,6.427]
[1726266463699,23.776884,139.87,139.83,6.427]
[1726266463999,45.256884,139.87,139.83,6.427]
[1726266471203,0.25098,139.86,139.83,6.427]
[1726266472999,0.12549,139.85,139.83,6.427]
[1726266477000,0.12549,139.85,139.82,16.0454]
[1726266477406,0.12549,139.85,139.8,6.1961]
[1726266491889,0.12549,139.85,139.79,15.7685]
[1726266491890,0.12549,139.85,139.78,0.2627188]
[1726266492187,0.12549,139.81,139.78,0.2627188]
[1726266492405,24.153354,139.81,139.78,0.2627188]
[1726266492608,45.633354,139.81,139.78,0.2627188]
[1726266501405,21.48,139.83,139.78,0.2627188]
[1726266501694,21.48,139.85,139.78,0.2627188]
[1726266502702,0.37647,139.84,139.78,0.2627188]
[1726266504322,21.48,139.82,139.78,0.2627188]
[1726266504827,23.776884,139.81,139.78,0.2627188]
[1726266508122,45.256884,139.81,139.78,0.2627188]
[1726266516131,0.37647,139.8,139.78,0.2627188]
[1726266528437,52.661364,139.79,139.78,0.2627188]
[1726266528629,52.786854,139.79,139.78,0.2627188]
[1726266528827,21.48,139.77,139.74,0.2627188]
[1726266529040,0.37647,139.76,139.74,0.2627188]
[1726266531127,24.153354,139.76,139.74,0.2627188]
[1726266531346,21.73098,139.75,139.74,0.2627188]
[1726266531641,45.633354,139.75,139.74,0.2627188]
[1726266533246,0.25098,139.72,139.7,0.2627188]
[1726266533546,0.12549,139.71,139.7,0.2627188]
[1726266536839,36.09631859,139.74,139.7,6.9038188]
[1726266536840,21.48,139.74,139.7,6.9038188]
[1726266537042,7.1526,139.81,139.7,6.9038188]
[1726266537247,7.45658519,139.81,139.7,6.9038188]
[1726266537426,7.45658519,139.81,139.71,20.0]
[1726266537625,7.45658519,139.81,139.72,16.2684]
[1726266537831,21.48,139.8,139.72,16.2684]
[1726266539450,0.12549,139.77,139.72,16.2684]
[1726266539759,21.48,139.74,139.72,16.2684]
[1726266540255,23.776884,139.73,139.72,16.2684]
[1726266542138,45.256884,139.73,139.72,16.2684]
[1726266543953,45.256884,139.73,139.7,6.9038188]
[1726266553368,45.256884,139.73,139.7,0.2627188]
[1726266553872,0.37647,139.72,139.7,0.2627188]
[1726266562478,21.48,139.71,139.7,0.2627188]
[1726266562659,45.633354,139.71,139.7,0.2627188]
[1726266562856,52.790954,139.71,139.7,0.2627188]
[1726266563853,52.790954,139.71,139.66,0.2627188]
[1726266563854,0.25098,139.68,139.66,0.2627188]
[1726266564057,0.12549,139.67,139.66,0.2627188]
[1726266566156,21.85647,139.67,139.66,0.2627188]
[1726266566355,45.633354,139.67,139.66,0.2627188]
[1726266569982,52.793054,139.67,139.66,0.2627188]
[1726266571367,52.793054,139.67,139.62,0.2627188]
[1726266571368,0.25098,139.64,139.62,0.2627188]
[1726266571570,0.12549,139.63,139.62,0.2627188]
[1726266572171,28.6409,139.65,139.62,0.2627188]
[1726266572172,28.01737,139.65,139.62,0.2627188]
[1726266572487,27.39324,139.66,139.62,0.2627188]
[1726266573185,27.39324,139.66,139.62,0.1578664]
[1726266573186,34.85377395,139.66,139.62,0.1578664]
[1726266573569,20.23294,139.64,139.62,0.1578664]
[1726266573773,44.009824,139.63,139.62,0.1578664]
[1726266574086,21.53,139.63,139.62,0.1578664]
[1726266575278,45.683354,139.63,139.62,0.1578664]
[1726266580488,52.845054,139.63,139.62,0.1578664]
[1726266586095,45.683354,139.63,139.62,0.1578664]
[1726266587073,52.845054,139.63,139.62,0.1578664]
[1726266587473,45.683354,139.63,139.62,0.1578664]
[1726266588099,45.557864,139.6,139.59,0.26696]
[1726266588299,52.846654,139.6,139.59,0.26696]
[1726266589401,69.370454,139.6,139.59,1e-08]
[1726266589603,28.94628,139.56,139.55,0.26696]
[1726266589802,29.07177,139.56,139.55,0.26696]
[1726266590301,52.848654,139.56,139.55,0.26696]
[1726266591383,45.683354,139.56,139.55,0.26696]
[1726266593695,21.65549,139.56,139.55,0.26696]
[1726266593895,21.53,139.6,139.55,0.26696]
[1726266595207,21.78098,139.58,139.55,0.26696]
[1726266595395,21.53,139.57,139.55,0.26696]
[1726266595781,23.776884,139.56,139.55,0.26696]
[1726266600304,21.53,139.6,139.55,0.26696]
[1726266601386,28.6936,139.6,139.55,0.26696]
[1726266601586,21.78098,139.56,139.55,0.26696]
[1726266601800,45.683354,139.56,139.55,0.26696]
[1726266606284,45.432374,139.56,139.55,0.26696]
[1726266606490,28.6935,139.6,139.55,0.26696]
[1726266607109,21.53,139.6,139.55,0.26696]
[1726266607422,21.53,139.63,139.57,6.4745]
[1726266608419,21.53,139.66,139.57,6.4745]
[1726266608715,21.53,139.61,139.57,6.4745]
[1726266608886,21.53,139.59,139.57,6.4745]
[1726266609098,23.776884,139.58,139.57,6.4745]
[1726266609494,23.49691656,139.67,139.57,6.4745]
[1726266609495,30.65701656,139.67,139.57,6.4745]
[1726266609693,14.62491656,139.67,139.57,6.4745]
[1726266610210,21.53,139.66,139.57,6.4745]
[1726266611909,14.62491656,139.67,139.57,6.4745]
[1726266611910,21.53,139.64,139.57,6.4745]
[1726266612114,28.6916,139.64,139.57,6.4745]
[1726266612820,21.78098,139.62,139.57,6.4745]
[1726266613037,21.53,139.6,139.57,6.4745]
[1726266613321,23.776884,139.59,139.57,6.4745]
[1726266613511,21.65549,139.62,139.57,6.4745]
[1726266613712,0.12549,139.62,139.57,6.4745]
[1726266614017,7.1596,139.68,139.57,6.4745]
[1726266614018,0.12549,139.66,139.57,6.4745]
[1726266614230,0.25098,139.67,139.57,6.4745]
[1726266614717,21.78098,139.67,139.57,6.4745]
[1726266615923,0.12549,139.65,139.58,15.9633]
[1726266616703,7.49338905,139.69,139.61,20.25098]
[1726266616911,0.26696,139.74,139.63,20.0]
[1726266617110,0.26696,139.74,139.64,6.5612]
[1726266617803,0.26696,139.74,139.65,16.567]
[1726266619532,21.79696,139.74,139.65,16.567]
[1726266621526,0.26696,139.74,139.65,16.567]
[1726266622717,45.432374,139.71,139.65,16.567]
[1726266623027,45.306884,139.67,139.65,16.567]
[1726266623826,45.306884,139.67,139.64,6.5612]
[1726266624214,0.12549,139.66,139.64,6.5612]
[1726266626221,0.12549,139.66,139.55,0.26696]
[1726266626439,0.12549,139.61,139.55,0.26696]
[1726266626606,21.53,139.62,139.55,0.26696]
[1726266626810,10.0,139.69,139.58,22.1772]
[1726266627023,7.1572,139.72,139.58,22.1772]
[1726266627431,7.4879534,139.71,139.58,22.1772]
[1726266627607,21.79696,139.7,139.58,22.1772]
[1726266627813,21.79696,139.7,139.59,20.0]
[1726266628013,21.79696,139.7,139.59,20.12549]
[1726266628214,21.53,139.68,139.59,20.12549]
[1726266628511,45.306884,139.67,139.59,20.12549]
[1726266628707,21.53,139.67,139.59,20.12549]
[1726266629124,23.776884,139.66,139.59,20.12549]
[1726266629841,45.306884,139.66,139.59,20.0]
[1726266630015,0.25098,139.65,139.58,22.1772]
[1726266630410,0.12549,139.64,139.58,22.1772]
[1726266630623,0.12549,139.63,139.58,22.1772]
[1726266631226,21.53,139.62,139.58,22.1772]
[1726266632122,45.306884,139.61,139.58,22.1772]
[1726266632629,45.306884,139.61,139.58,6.5426]
[1726266633835,45.306884,139.61,139.58,6.6299]
[1726266635236,15.4337,139.67,139.58,6.6299]
[1726266635438,0.1706988,139.68,139.58,6.6299]
[1726266635439,21.53,139.63,139.58,6.6299]
[1726266636317,21.53,139.67,139.58,6.6299]
[1726266636639,0.1706988,139.68,139.6,15.3465]
[1726266638439,21.53,139.67,139.6,15.3465]
[1726266638641,0.1706988,139.68,139.6,15.3465]
[1726266638642,23.776884,139.64,139.6,15.3465]
[1726266639730,45.306884,139.64,139.6,15.3465]
[1726266641635,45.306884,139.64,139.58,6.6299]
[1726266656053,45.306884,139.64,139.58,6.6299]
[1726266662832,0.37647,139.63,139.58,6.6299]
[1726266670163,21.53,139.6,139.58,6.6299]
[1726266670540,45.306884,139.59,139.58,6.6299]
[1726266671935,23.776884,139.59,139.58,6.6299]
[1726266672963,23.776884,139.59,139.58,0.0873]
[1726266676066,21.53,139.64,139.58,0.0873]
[1726266676560,21.53,139.67,139.58,0.0873]
[1726266678336,28.6898,139.67,139.58,0.0873]
[1726266678535,7.1603,139.66,139.58,0.0873]
[1726266678766,21.53,139.65,139.58,0.0873]
[1726266679065,23.776884,139.62,139.58,0.0873]
[1726266680064,45.306884,139.62,139.58,0.0873]
[1726266681754,0.12549,139.61,139.58,0.0873]
[1726266682566,0.25098,139.61,139.58,0.0873]
[1726266683853,45.432374,139.62,139.58,0.0873]
[1726266687875,0.25098,139.61,139.58,0.0873]
[1726266689470,45.306884,139.62,139.58,0.0873]
[1726266697186,21.53,139.66,139.58,0.0873]
[1726266697394,21.53,139.66,139.6,16.0379]
[1726266698261,21.53,139.67,139.6,16.0379]
[1726266699680,23.776884,139.64,139.6,16.0379]
[1726266701094,0.1706988,139.68,139.6,16.0379]
[1726266701597,0.1706988,139.68,139.61,6.5135]
[1726266702686,21.7006988,139.68,139.61,6.5135]
[1726266703292,45.306884,139.67,139.61,6.5135]
[1726266703467,21.53,139.67,139.61,6.5135]
[1726266703664,0.1706988,139.68,139.61,6.5135]
[1726266703665,45.306884,139.66,139.61,6.5135]
[1726266704084,21.7006988,139.68,139.61,6.5135]
[1726266704282,45.306884,139.67,139.61,6.5135]
[1726266704686,21.53,139.67,139.61,6.5135]
[1726266704873,23.776884,139.66,139.61,6.5135]
[1726266705469,0.1706988,139.68,139.61,6.5135]
[1726266706695,21.7006988,139.68,139.61,6.5135]
[1726266706996,45.306884,139.67,139.61,6.5135]
[1726266707198,21.53,139.67,139.61,6.5135]
[1726266707865,23.776884,139.64,139.61,6.5135]
[1726266708698,45.306884,139.64,139.61,6.5135]
[1726266709694,45.306884,139.64,139.58,0.0873]